fUSD/lending_fUSD_20260501
["ID","MTS","AMOUNT","RATE_DAILY","PERIOD"]
[421420489,1777612238000,-297.3887987,0.00012,2]
[421420488,1777612238000,-867.04626424,0.00012,2]
[421420490,1777612238000,-1076.55582393,0.00012,2]
[421420497,1777612238000,-389.00486597,0.00012,2]
[421420492,1777612238000,-471.87366345,0.00012,2]
[421420495,1777612238000,-1553.52,0.00012,2]
[421420494,1777612238000,-2027.98034925,0.00012,2]
[421420493,1777612238000,-557.49671702,0.00012,2]
[421420496,1777612238000,-3544.04180875,0.00012,2]
[421420783,1777612240000,-188821.46954013,0.00012,2]
[421420723,1777612240000,-2458.50849633,0.00012,2]
[421420707,1777612240000,-300.13246974,0.00012,2]
[421420709,1777612240000,-652.08200092,0.00012,2]
[421420698,1777612240000,-201022.48416987,0.00012,2]
[421420793,1777612241000,-26447.61264975,0.00012,2]
[421421078,1777612243000,-19808.56049736,0.00012,2]
[421421089,1777612243000,-834.66711059,0.00012,2]
[421421092,1777612243000,-1926.975,0.00012,2]
[421421124,1777612243000,-287.58426209,0.00012,2]
[421421081,1777612243000,-730.12479506,0.00012,2]
[421421395,1777612246000,-857.83410976,0.00012,2]
[421421394,1777612246000,-14119.56477211,0.00012,2]
[421421393,1777612246000,-2000.0,0.00012,2]
[421421392,1777612246000,-646.0500007,0.00012,2]
[421421384,1777612246000,-58095.63830482,0.00012,2]
[421421424,1777612294000,165.548087,0.00025686,120]
[421421425,1777612524000,166.38,0.00025686,120]
[421421426,1777613161000,150.49028307,0.000254,120]
[421421427,1777613289000,150.0,0.0002559,120]
[421421428,1777613365000,262.21505691,0.000101,2]
[421421430,1777613366000,2300.48830051,0.0001,2]
[421421429,1777613366000,9737.79494309,0.0001,2]
[421421431,1777613392000,500.0,0.00030137,120]
[421421432,1777613414000,500.0,0.00030137,120]
[421421445,1777613432000,-289.2219901,0.000108,2]
[421421446,1777613432000,-6023.52488885,0.00011,2]
[421421447,1777613432000,-150.0,0.00011,2]
[421421454,1777613432000,-3499.93036107,0.000114,2]
[421421444,1777613432000,-150.0,0.000108,2]
[421421443,1777613432000,-229.61466376,0.000108,2]
[421421442,1777613432000,-297.16245739,0.000108,2]
[421421452,1777613432000,-150.0,0.000114,2]
[421421441,1777613432000,-297.32158999,0.000108,2]
[421421438,1777613432000,-67.03856977,0.000108,2]
[421421439,1777613432000,-82.96143023,0.000108,2]
[421421437,1777613432000,-150.0,0.000108,2]
[421421436,1777613432000,-300.0,0.00010799,2]
[421421435,1777613432000,-1200.0,0.00010799,2]
[421421440,1777613432000,-150.0,0.000108,2]
[421421449,1777613432000,-150.0,0.000112,2]
[421421453,1777613432000,-150.0,0.000114,2]
[421421450,1777613432000,-620.82,0.000113,2]
[421421467,1777613432000,-277.70821029,0.00011424,2]
[421421465,1777613432000,-4926.88676017,0.00011424,2]
[421421461,1777613432000,-4630.3,0.00011424,2]
[421421464,1777613432000,-9999.99,0.00011424,2]
[421421451,1777613432000,-150.0,0.000114,2]
[421421458,1777613432000,-299.99,0.00011423,2]
[421421457,1777613432000,-252.61,0.00011423,2]
[421421462,1777613432000,-3697.82,0.00011424,2]
[421421460,1777613432000,-2121.92,0.00011424,2]
[421421459,1777613432000,-353.57142494,0.00011424,2]
[421421463,1777613432000,-7627.69,0.00011424,2]
[421421466,1777613432000,-2507.7401103,0.00011424,2]
[421421455,1777613432000,-150.0,0.00011423,2]
[421421448,1777613432000,-150.0,0.000111,2]
[421421456,1777613432000,-24999.99,0.00011423,2]
[421421493,1777613438000,-1158.0620497,0.000118,2]
[421421497,1777613438000,-620.75346469,0.00011811,2]
[421421491,1777613438000,-350.0,0.00011768,2]
[421421494,1777613438000,-155.4336307,0.000118,2]
[421421496,1777613438000,-150.0,0.000118,2]
[421421492,1777613438000,-5000.0,0.000118,2]
[421421495,1777613438000,-217.94669982,0.000118,2]
[421421490,1777613438000,-184.0,0.0001176,2]
[421421499,1777613438000,-65.45573351,0.00011822,2]
[421421488,1777613438000,-150.0,0.000116,2]
[421421486,1777613438000,-8619.04024569,0.00011424,2]
[421421487,1777613438000,-150.99,0.00011424,2]
[421421485,1777613438000,-546.24588352,0.00011424,2]
[421421484,1777613438000,-713.71647197,0.00011424,2]
[421421482,1777613438000,-1679.70491924,0.00011424,2]
[421421483,1777613438000,-120.98739882,0.00011424,2]
[421421489,1777613438000,-150.0,0.000117,2]
[421421498,1777613438000,-1158.06204962,0.00011811,2]
[421421513,1777613438000,-2410.42743907,0.00011857,2]
[421421502,1777613438000,-620.75346469,0.00011833,2]
[421421500,1777613438000,-555.29773118,0.00011822,2]
[421421518,1777613438000,-2410.42743907,0.00011871,2]
[421421517,1777613438000,-229.0,0.00011869,2]
[421421516,1777613438000,-1158.06204962,0.00011867,2]
[421421515,1777613438000,-620.75346469,0.00011867,2]
[421421521,1777613438000,-620.75346469,0.00011878,2]
[421421510,1777613438000,-620.75346469,0.00011856,2]
[421421512,1777613438000,-992.24407071,0.00011856,2]
[421421514,1777613438000,-350.0,0.00011864,2]
[421421509,1777613438000,-109.59286954,0.00011855,2]
[421421508,1777613438000,-41.13613046,0.00011855,2]
[421421507,1777613438000,-2669.016,0.00011855,2]
[421421505,1777613438000,-620.75346469,0.00011844,2]
[421421504,1777613438000,-2410.42743907,0.00011843,2]
[421421506,1777613438000,-1158.06204962,0.00011844,2]
[421421503,1777613438000,-1158.06204962,0.00011833,2]
[421421511,1777613438000,-165.81797891,0.00011856,2]
[421421501,1777613438000,-1158.06204962,0.00011822,2]
[421421588,1777613439000,-500.0,0.00011899,2]
[421421584,1777613439000,-500.0,0.00011899,2]
[421421577,1777613439000,-500.0,0.00011899,2]
[421421572,1777613439000,-500.0,0.00011899,2]
[421421573,1777613439000,-500.0,0.00011899,2]
[421421586,1777613439000,-500.0,0.00011899,2]
[421421576,1777613439000,-500.0,0.00011899,2]
[421421587,1777613439000,-500.0,0.00011899,2]
[421421591,1777613439000,-500.0,0.00011899,2]
[421421590,1777613439000,-500.0,0.00011899,2]
[421421596,1777613439000,-500.0,0.00011899,2]
[421421595,1777613439000,-500.0,0.00011899,2]
[421421585,1777613439000,-500.0,0.00011899,2]
[421421594,1777613439000,-500.0,0.00011899,2]
[421421592,1777613439000,-500.0,0.00011899,2]
[421421575,1777613439000,-217.20744461,0.00011899,2]
[421421589,1777613439000,-500.0,0.00011899,2]
[421421574,1777613439000,-500.0,0.00011899,2]
[421421562,1777613439000,-500.0,0.00011893,2]
[421421580,1777613439000,-500.0,0.00011899,2]
[421421523,1777613439000,-1158.06204962,0.00011878,2]
[421421528,1777613439000,-250.0,0.00011879,2]
[421421533,1777613439000,-1680.0,0.00011879,2]
[421421525,1777613439000,-250.0,0.00011879,2]
[421421530,1777613439000,-250.0,0.00011879,2]
[421421553,1777613439000,-2410.42743907,0.00011886,2]
[421421555,1777613439000,-620.75346469,0.00011889,2]
[421421564,1777613439000,-293.77,0.00011899,2]
[421421578,1777613439000,-500.0,0.00011899,2]
[421421560,1777613439000,-200.0,0.00011893,2]
[421421566,1777613439000,-250.0,0.00011899,2]
[421421593,1777613439000,-500.0,0.00011899,2]
[421421568,1777613439000,-500.0,0.00011899,2]
[421421571,1777613439000,-500.0,0.00011899,2]
[421421570,1777613439000,-500.0,0.00011899,2]
[421421583,1777613439000,-500.0,0.00011899,2]
[421421582,1777613439000,-500.0,0.00011899,2]
[421421579,1777613439000,-500.0,0.00011899,2]
[421421558,1777613439000,-1158.06204962,0.00011889,2]
[421421598,1777613439000,-500.0,0.00011899,2]
[421421608,1777613439000,-500.0,0.00011899,2]
[421421601,1777613439000,-500.0,0.00011899,2]
[421421618,1777613439000,-500.0,0.00011899,2]
[421421623,1777613439000,-500.0,0.00011899,2]
[421421626,1777613439000,-500.0,0.00011899,2]
[421421597,1777613439000,-500.0,0.00011899,2]
[421421627,1777613439000,-250.0,0.00011899,2]
[421421624,1777613439000,-500.0,0.00011899,2]
[421421634,1777613439000,-500.0,0.00011899,2]
[421421628,1777613439000,-500.0,0.00011899,2]
[421421630,1777613439000,-500.0,0.00011899,2]
[421421629,1777613439000,-500.0,0.00011899,2]
[421421632,1777613439000,-500.0,0.00011899,2]
[421421633,1777613439000,-500.0,0.00011899,2]
[421421631,1777613439000,-500.0,0.00011899,2]
[421421636,1777613439000,-488.61105001,0.00011899,2]
[421421635,1777613439000,-422.0552192,0.00011899,2]
[421421637,1777613439000,-196295.24963669,0.000119,2]
[421421638,1777613439000,-1420.83563006,0.000119,2]
[421421617,1777613439000,-500.0,0.00011899,2]
[421421620,1777613439000,-500.0,0.00011899,2]
[421421625,1777613439000,-500.0,0.00011899,2]
[421421615,1777613439000,-450.0,0.00011899,2]
[421421599,1777613439000,-500.0,0.00011899,2]
[421421600,1777613439000,-500.0,0.00011899,2]
[421421614,1777613439000,-425.56766007,0.00011899,2]
[421421606,1777613439000,-500.0,0.00011899,2]
[421421603,1777613439000,-500.0,0.00011899,2]
[421421605,1777613439000,-500.0,0.00011899,2]
[421421602,1777613439000,-414.1865443,0.00011899,2]
[421421604,1777613439000,-500.0,0.00011899,2]
[421421609,1777613439000,-500.0,0.00011899,2]
[421421610,1777613439000,-500.0,0.00011899,2]
[421421613,1777613439000,-500.0,0.00011899,2]
[421421612,1777613439000,-500.0,0.00011899,2]
[421421621,1777613439000,-500.0,0.00011899,2]
[421421611,1777613439000,-500.0,0.00011899,2]
[421421619,1777613439000,-500.0,0.00011899,2]
[421421616,1777613439000,-500.0,0.00011899,2]
[421421622,1777613439000,-500.0,0.00011899,2]
[421421607,1777613439000,-500.0,0.00011899,2]
[421421643,1777613441000,-468703.78820706,0.000119,2]
[421421642,1777613441000,-157547.85963325,0.000119,2]
[421421645,1777613441000,-4553.25497899,0.000119,2]
[421421647,1777613441000,-351.18,0.000119,2]
[421421646,1777613441000,-380.30947352,0.000119,2]
[421421644,1777613441000,-3565.18647994,0.000119,2]
[421421666,1777613443000,-677.73527224,0.000119,2]
[421421662,1777613443000,-7968.75557777,0.000119,2]
[421421664,1777613443000,-1423.0623945,0.000119,2]
[421421663,1777613443000,-6215.17272843,0.000119,2]
[421421665,1777613443000,-10501.48584787,0.000119,2]
[421421667,1777613443000,-290.0,0.000119,2]
[421421671,1777613443000,-151.0,0.000119,2]
[421421670,1777613443000,-39509.97162214,0.000119,2]
[421421674,1777613443000,-620.75346469,0.000119,2]
[421421672,1777613443000,-151.0,0.000119,2]
[421421673,1777613443000,-151.0,0.000119,2]
[421421669,1777613443000,-4656.73222508,0.000119,2]
[421421668,1777613443000,-756.36239246,0.000119,2]
[421421685,1777613444000,-385.948085,0.000119,2]
[421421684,1777613444000,-574.19217434,0.000119,2]
[421421679,1777613444000,-151.0,0.000119,2]
[421421680,1777613444000,-2410.42743907,0.000119,2]
[421421681,1777613444000,-1158.06204962,0.000119,2]
[421421688,1777613444000,-385.948085,0.000119,2]
[421421687,1777613444000,-385.948085,0.000119,2]
[421421682,1777613444000,-5313.45152229,0.000119,2]
[421421677,1777613444000,-151.0,0.000119,2]
[421421675,1777613444000,-255.50548,0.000119,2]
[421421678,1777613444000,-151.0,0.000119,2]
[421421683,1777613444000,-7367.85339479,0.000119,2]
[421421686,1777613444000,-385.948085,0.000119,2]
[421421700,1777613444000,-300.0,0.00011999,2]
[421421690,1777613444000,-151.0,0.000119,2]
[421421696,1777613444000,-4873.870091,0.00011995,2]
[421421699,1777613444000,-300.0,0.00011999,2]
[421421702,1777613444000,-300.0,0.00011999,2]
[421421698,1777613444000,-1330.6345107,0.00011995,2]
[421421689,1777613444000,-151.0,0.000119,2]
[421421703,1777613444000,-366.53815918,0.00011999,2]
[421421694,1777613444000,-151.0,0.000119,2]
[421421695,1777613444000,-159.51,0.00011988,2]
[421421692,1777613444000,-198.36461731,0.000119,2]
[421421697,1777613444000,-7164.1980967,0.00011995,2]
[421421704,1777613444000,-701474.47972087,0.00012,2]
[421421708,1777613446000,-800.00006697,0.00012,2]
[421421706,1777613446000,-3110.30451518,0.00012,2]
[421421707,1777613446000,-4246.17168151,0.00012,2]
[421421709,1777613446000,-1871.22617062,0.00012,2]
[421421711,1777613446000,-10000.01,0.00012,2]
[421421710,1777613446000,-9567.46598948,0.00012,2]
[421421713,1777613446000,-257.72629871,0.00012,2]
[421421716,1777613446000,-1261.267356,0.00012,2]
[421421715,1777613446000,-4504.83531409,0.00012,2]
[421421717,1777613446000,-8489.11541545,0.00012,2]
[421421714,1777613446000,-565.6000001,0.00012,2]
[421421712,1777613446000,-514585.48318029,0.00012,2]
[421421722,1777613456000,10000.01,0.000107,2]
[421421723,1777613456000,10000.01,0.000107,2]
[421421725,1777613456000,10000.01,0.000107,2]
[421421726,1777613456000,10000.01,0.000107,2]
[421421724,1777613456000,10000.01,0.000107,2]
[421421728,1777613456000,10000.01,0.000107,2]
[421421730,1777613456000,10000.01,0.000107,2]
[421421729,1777613456000,10000.01,0.000107,2]
[421421731,1777613456000,10000.01,0.000107,2]
[421421727,1777613456000,10000.01,0.000107,2]
[421421733,1777613740000,-164.68063555,9.04e-05,2]
[421421736,1777614302000,24644.64343175,0.00010204,10]
[421421735,1777614302000,50000.0,0.00010204,10]
[421421734,1777614302000,44307.35,0.00010204,10]
[421421737,1777614592000,-1233.68289629,0.00010204,2]
[421421738,1777614592000,-250.0,0.00010328,2]
[421421740,1777614592000,-1200.0,0.00010451,2]
[421421742,1777614592000,-235.02,0.00010452,2]
[421421739,1777614592000,-250.0,0.00010439,2]
[421421743,1777614592000,-200.0,0.00010452,2]
[421421741,1777614592000,-300.0,0.00010451,2]
[421421763,1777614593000,-500.0,0.00010699,2]
[421421761,1777614593000,-500.0,0.00010699,2]
[421421758,1777614593000,-500.0,0.00010699,2]
[421421759,1777614593000,-500.0,0.00010699,2]
[421421757,1777614593000,-500.0,0.00010699,2]
[421421756,1777614593000,-500.0,0.00010699,2]
[421421755,1777614593000,-500.0,0.00010699,2]
[421421753,1777614593000,-467.04521123,0.00010699,2]
[421421754,1777614593000,-500.0,0.00010699,2]
[421421752,1777614593000,-500.0,0.00010699,2]
[421421751,1777614593000,-450.44715622,0.000106,2]
[421421749,1777614593000,-2135.212,0.00010486,2]
[421421750,1777614593000,-150.729,0.00010486,2]
[421421748,1777614593000,-500.0,0.00010452,2]
[421421746,1777614593000,-500.0,0.00010452,2]
[421421747,1777614593000,-500.0,0.00010452,2]
[421421744,1777614593000,-500.0,0.00010452,2]
[421421745,1777614593000,-500.0,0.00010452,2]
[421421764,1777614593000,-500.0,0.00010699,2]
[421421762,1777614593000,-500.0,0.00010699,2]
[421421760,1777614593000,-500.0,0.00010699,2]
[421421766,1777614593000,-500.0,0.00010699,2]
[421421785,1777614593000,-500.0,0.00010699,2]
[421421784,1777614593000,-500.0,0.00010699,2]
[421421782,1777614593000,-500.0,0.00010699,2]
[421421783,1777614593000,-500.0,0.00010699,2]
[421421765,1777614593000,-500.0,0.00010699,2]
[421421781,1777614593000,-500.0,0.00010699,2]
[421421779,1777614593000,-500.0,0.00010699,2]
[421421778,1777614593000,-500.0,0.00010699,2]
[421421775,1777614593000,-500.0,0.00010699,2]
[421421780,1777614593000,-500.0,0.00010699,2]
[421421774,1777614593000,-500.0,0.00010699,2]
[421421776,1777614593000,-500.0,0.00010699,2]
[421421773,1777614593000,-500.0,0.00010699,2]
[421421772,1777614593000,-602.6234968,0.00010699,2]
[421421771,1777614593000,-500.0,0.00010699,2]
[421421770,1777614593000,-500.0,0.00010699,2]
[421421769,1777614593000,-500.0,0.00010699,2]
[421421767,1777614593000,-500.0,0.00010699,2]
[421421768,1777614593000,-500.0,0.00010699,2]
[421421777,1777614593000,-500.0,0.00010699,2]
[421421787,1777614594000,-500.0,0.00010699,2]
[421421789,1777614594000,-500.0,0.00010699,2]
[421421791,1777614594000,-346.53018411,0.00010699,2]
[421421788,1777614594000,-500.0,0.00010699,2]
[421421790,1777614594000,-500.0,0.00010699,2]
[421421786,1777614594000,-500.0,0.00010699,2]
[421421795,1777614631000,-688.97022698,0.00010451,2]
[421421796,1777614631000,-290.80240393,0.00010451,2]
[421421798,1777614631000,-162.61798079,0.00010575,2]
[421421799,1777614631000,-300.0,0.00010698,2]
[421421797,1777614631000,-220.22736909,0.00010451,2]
[421421801,1777614631000,-231255.79215307,0.000107,2]
[421421805,1777614631000,-719.62920142,0.000107,2]
[421421804,1777614631000,-385.37598275,0.000107,2]
[421421800,1777614631000,-1200.0,0.00010698,2]
[421421802,1777614631000,-39158.33619343,0.000107,2]
[421421803,1777614631000,-3543.76982793,0.000107,2]
[421421811,1777614637000,-258.6,0.000107,2]
[421421810,1777614637000,-615.21547425,0.000107,2]
[421421809,1777614637000,-548.04422839,0.000107,2]
[421421808,1777614637000,-380.14104426,0.000107,2]
[421421812,1777614638000,-383.736,0.000107,2]
[421421813,1777614638000,-344.88840309,0.000107,2]
[421421814,1777614638000,-1746.56751119,0.000107,2]
[421421977,1777614639000,-31326.20168956,0.000107,2]
[421421974,1777614639000,-9870.34272188,0.000107,2]
[421422032,1777614640000,-38328.80592239,0.000107,2]
[421422035,1777614640000,-1017.72063124,0.000107,2]
[421422065,1777614640000,-13437.15739924,0.000107,2]
[421422063,1777614640000,-1000.0,0.0001,2]
[421422127,1777614642000,-546.0,0.000107,2]
[421422128,1777614642000,-661.99694643,0.000107,2]
[421422126,1777614642000,-683.12818883,0.000107,2]
[421422155,1777614646000,-13884.17805852,0.000107,2]
[421422154,1777614646000,-407.8610721,0.000107,2]
[421422175,1777614875000,182.0,0.000115,3]
[421422176,1777614891000,-8341.84169949,0.00010599,2]
[421422177,1777614971000,-10000.01,0.00010599,2]
[421422178,1777614971000,-300.0,0.00010598,2]
[421422179,1777614971000,-9700.01,0.00010599,2]
[421422180,1777614972000,-10000.01,0.00010599,2]
[421422183,1777614973000,-10000.01,0.00010599,2]
[421422182,1777614973000,8638.18,0.0003013,120]
[421422181,1777614973000,-10000.01,0.00010599,2]
[421422184,1777614974000,-10000.01,0.00010599,2]
[421422185,1777615113000,59043.22311625,0.00028,120]
[421422192,1777615401000,153.81372154,0.00030137,120]
[421422194,1777615533000,-242.46162617,0.00010598,2]
[421422193,1777615533000,-287.0,0.00010598,2]
[421422199,1777615751000,-501.12735168,0.00010681,2]
[421422198,1777615751000,-23915.87300051,0.00010599,2]
[421422197,1777615751000,-300.0,0.00010598,2]
[421422195,1777615751000,-957.53837383,0.00010598,2]
[421422196,1777615751000,-287.0,0.00010598,2]
[421422200,1777615753000,-8944.614742,0.00010681,2]
[421422201,1777615754000,-7037.30527992,0.00010681,2]
[421422202,1777615754000,-288.0,0.00010681,2]
[421422203,1777615754000,-1955.233089,0.00010693,2]
[421422205,1777615754000,-200.0,0.00010694,2]
[421422204,1777615754000,-150.0,0.00010693,2]
[421422206,1777615754000,-151.0,0.00010694,2]
[421422208,1777615754000,-151.0,0.00010694,2]
[421422207,1777615754000,-500.0,0.00010694,2]
[421422211,1777615754000,-500.0,0.00010694,2]
[421422210,1777615754000,-151.0,0.00010694,2]
[421422213,1777615754000,-500.0,0.00010694,2]
[421422212,1777615754000,-151.0,0.00010694,2]
[421422215,1777615754000,-500.0,0.00010694,2]
[421422214,1777615754000,-151.0,0.00010694,2]
[421422216,1777615754000,-313.36,0.00010699,2]
[421422217,1777615754000,-26600.45199108,0.000107,2]
[421422209,1777615754000,-500.0,0.00010694,2]
[421422226,1777615774000,-500.0,0.00010699,2]
[421422223,1777615774000,-500.0,0.00010699,2]
[421422224,1777615774000,-500.0,0.00010699,2]
[421422222,1777615774000,-500.0,0.00010699,2]
[421422218,1777615774000,-500.0,0.00010699,2]
[421422220,1777615774000,-500.0,0.00010699,2]
[421422219,1777615774000,-500.0,0.00010699,2]
[421422225,1777615774000,-500.0,0.00010699,2]
[421422221,1777615774000,-500.0,0.00010699,2]
[421422229,1777615774000,-500.0,0.00010699,2]
[421422238,1777615774000,-9768.59794909,0.000107,2]
[421422228,1777615774000,-448.38518398,0.00010699,2]
[421422230,1777615774000,-500.0,0.00010699,2]
[421422233,1777615774000,-500.0,0.00010699,2]
[421422231,1777615774000,-500.0,0.00010699,2]
[421422232,1777615774000,-500.0,0.00010699,2]
[421422234,1777615774000,-500.0,0.00010699,2]
[421422236,1777615774000,-500.0,0.00010699,2]
[421422235,1777615774000,-500.0,0.00010699,2]
[421422237,1777615774000,-195.40615434,0.00010699,2]
[421422227,1777615774000,-500.0,0.00010699,2]
[421422244,1777615831000,-300.0,0.00010699,2]
[421422245,1777615831000,-154.71926508,0.00010699,2]
[421422247,1777615831000,-149.87073492,0.00010699,2]
[421422246,1777615831000,-895.41,0.00010699,2]
[421422249,1777615831000,-251.26463088,0.000107,2]
[421422250,1777615831000,-3618.60026185,0.000107,2]
[421422251,1777615831000,-737.89658391,0.000107,2]
[421422248,1777615831000,-162.0,0.00010699,2]
[421422255,1777615831000,-103125.19103249,0.000107,2]
[421422254,1777615831000,-11102.49689823,0.000107,2]
[421422253,1777615831000,-72037.47458845,0.000107,2]
[421422256,1777615831000,-901.23418243,0.000107,2]
[421422259,1777615831000,-1237.08734021,0.000107,2]
[421422252,1777615831000,-7382.38869468,0.000107,2]
[421422329,1777615838000,-151.0,0.00011196,2]
[421422325,1777615838000,-743.50770149,0.00011196,2]
[421422322,1777615838000,-1341.75701675,0.00011096,2]
[421422331,1777615838000,-209.40437684,0.00011196,2]
[421422330,1777615838000,-151.0,0.00011196,2]
[421422335,1777615838000,-5443.72677306,0.00011251,2]
[421422333,1777615838000,-290.26104003,0.00011196,2]
[421422339,1777615838000,-151.0,0.00011306,2]
[421422334,1777615838000,-346.35928332,0.00011242,2]
[421422340,1777615838000,-151.0,0.00011361,2]
[421422332,1777615838000,-174.61919141,0.00011196,2]
[421422324,1777615838000,-9552.16786547,0.00011196,2]
[421422315,1777615838000,-151.0,0.000107,2]
[421422328,1777615838000,-1428.38747117,0.00011196,2]
[421422323,1777615838000,-578.20924308,0.00011196,2]
[421422321,1777615838000,-500.0,0.00010959,2]
[421422319,1777615838000,-207.26564957,0.000108,2]
[421422320,1777615838000,-279.99,0.00010906,2]
[421422317,1777615838000,-273.2468497,0.000108,2]
[421422338,1777615838000,-24214.07,0.00011281,2]
[421422318,1777615838000,-169.10699663,0.000108,2]
[421422312,1777615838000,-10000.81205368,0.000107,2]
[421422314,1777615838000,-151.0,0.000107,2]
[421422313,1777615838000,-1256.20417072,0.000107,2]
[421422327,1777615838000,-200.0,0.00011196,2]
[421422337,1777615838000,-342.027735,0.0001128,2]
[421422316,1777615838000,-229.64516561,0.000108,2]
[421422341,1777615838000,-151.0,0.00011416,2]
[421422336,1777615838000,-151.0,0.00011251,2]
[421422374,1777615838000,-244.05684706,0.00011424,2]
[421422376,1777615838000,-5925.57856251,0.000115,2]
[421422375,1777615838000,-700.0,0.00011437,2]
[421422373,1777615838000,-500.0,0.00011424,2]
[421422368,1777615838000,-500.0,0.00011424,2]
[421422377,1777615838000,-1262.895774,0.000115,2]
[421422370,1777615838000,-500.0,0.00011424,2]
[421422371,1777615838000,-500.0,0.00011424,2]
[421422372,1777615838000,-500.0,0.00011424,2]
[421422366,1777615838000,-500.0,0.00011424,2]
[421422355,1777615838000,-500.0,0.00011424,2]
[421422365,1777615838000,-500.0,0.00011424,2]
[421422326,1777615838000,-721.12765535,0.00011196,2]
[421422348,1777615838000,-500.0,0.00011424,2]
[421422343,1777615838000,-500.0,0.00011424,2]
[421422342,1777615838000,-500.0,0.00011424,2]
[421422344,1777615838000,-500.0,0.00011424,2]
[421422346,1777615838000,-500.0,0.00011424,2]
[421422357,1777615838000,-500.0,0.00011424,2]
[421422359,1777615838000,-500.0,0.00011424,2]
[421422361,1777615838000,-500.0,0.00011424,2]
[421422363,1777615838000,-500.0,0.00011424,2]
[421422350,1777615838000,-500.0,0.00011424,2]
[421422352,1777615838000,-500.0,0.00011424,2]
[421422347,1777615838000,-500.0,0.00011424,2]
[421422345,1777615838000,-500.0,0.00011424,2]
[421422389,1777615840000,-1680.0,0.00011769,2]
[421422379,1777615840000,-1029.67326749,0.000115,2]
[421422380,1777615840000,-6061.57519651,0.000115,2]
[421422381,1777615840000,-2745.87520597,0.000115,2]
[421422382,1777615840000,-250.0,0.00011658,2]
[421422386,1777615840000,-420.0,0.00011761,2]
[421422383,1777615840000,-255.0,0.0001173,2]
[421422384,1777615840000,-200.0,0.00011744,2]
[421422391,1777615840000,-710.75,0.0001188,2]
[421422385,1777615840000,-181.08010149,0.00011744,2]
[421422390,1777615840000,-105.15225387,0.0001188,2]
[421422387,1777615840000,-250.0,0.00011769,2]
[421422401,1777615842000,-534.67729966,0.0001188,2]
[421422402,1777615842000,-23.53756639,0.0001188,2]
[421422400,1777615842000,-1465.32270034,0.0001188,2]
[421422397,1777615842000,-1184.09774613,0.0001188,2]
[421422399,1777615842000,-2000.0,0.0001188,2]
[421422398,1777615842000,-2000.0,0.0001188,2]
[421422403,1777615843000,-416.0,0.0001188,2]
[421422412,1777615846000,-1560.46243361,0.0001188,2]
[421422413,1777615846000,-1354.08659531,0.000119,2]
[421422414,1777615846000,-381.13930652,0.000119,2]
[421422415,1777615846000,-7810.24304539,0.000119,2]
[421422417,1777615846000,-139.0040912,0.000119,2]
[421422418,1777615846000,-155.43363069,0.000119,2]
[421422419,1777615846000,-97.57088665,0.000119,2]
[421422420,1777615846000,-370.32589705,0.000119,2]
[421422421,1777615846000,-4444.0054795,0.000119,2]
[421422422,1777615846000,-382.79478288,0.000119,2]
[421422423,1777615846000,-200.0,0.00011904,2]
[421422416,1777615846000,-315.52696158,0.000119,2]
[421422426,1777615846000,-700.0,0.0001197,2]